bitfinex/quotes_BTCUSD_20220304
["timestamp","ask_amount","ask_price","bid_price","bid_amount"]
[1646402951833,0.88561,41195.0,41180.0,0.3]
[1646402952034,0.14991,41191.0,41183.0,0.060725]
[1646402952232,0.7357,41190.0,41183.0,0.060725]
[1646402952430,0.7357,41190.0,41182.0,0.2142352]
[1646402952431,0.366851,41189.0,41182.0,0.2142352]
[1646402952632,0.14991,41191.0,41182.0,0.2749572]
[1646402953130,0.14991,41191.0,41182.0,0.21415212]
[1646402953377,0.20670172,41190.0,41182.0,0.21415212]
[1646402954277,0.7357,41195.0,41182.0,0.21415212]
[1646402954477,0.7357,41195.0,41183.0,0.060721]
[1646402954678,0.662564,41199.0,41183.0,0.384951]
[1646402954679,0.60184039,41199.0,41183.0,0.384951]
[1646402954879,0.60184039,41199.0,41186.0,0.060715]
[1646402955078,0.21447157,41197.0,41187.0,0.121418]
[1646402955279,0.60184039,41199.0,41191.0,0.06545614]
[1646402955480,0.60184039,41199.0,41187.0,0.445648]
[1646402955679,0.60184039,41199.0,41187.0,0.121418]
[1646402955879,0.3,41198.0,41187.0,0.121418]
[1646402956379,0.3,41198.0,41192.0,0.23277094]
[1646402956580,0.60184039,41199.0,41193.0,0.29903198]
[1646402957426,0.60184039,41199.0,41194.0,0.060708]
[1646402957627,0.60184039,41199.0,41195.0,0.08493]
[1646402957826,0.60184039,41199.0,41196.0,0.20632]
[1646402958226,0.60184039,41199.0,41196.0,0.30632]
[1646402958429,0.63458879,41201.0,41198.0,0.02423]
[1646402958629,0.63458879,41201.0,41199.0,0.28409325]
[1646402959226,0.63458879,41201.0,41199.0,0.25986325]
[1646402959725,0.63458879,41201.0,41200.0,0.24597088]
[1646402961281,0.62507239,41201.0,41200.0,0.24597088]
[1646402961675,0.61930239,41201.0,41200.0,0.24597088]
[1646402961876,0.61353239,41201.0,41200.0,0.24597088]
[1646402965532,0.60853239,41201.0,41200.0,0.24597088]
[1646402966732,0.60853239,41201.0,41200.0,0.49606031]
[1646402966933,0.60853239,41201.0,41200.0,0.5690997]
[1646402968037,0.19525335,41221.0,41208.0,0.060686]
[1646402968286,0.14991,41222.0,41207.0,0.121371]
[1646402968287,0.14991,41222.0,41209.0,0.0485]
[1646402968483,0.44991,41222.0,41215.0,0.28446407]
[1646402968683,0.44991,41222.0,41209.0,0.0985]
[1646402969085,0.21932906,41220.0,41215.0,0.23505272]
[1646402969283,0.21932906,41220.0,41215.0,0.29573172]
[1646402969482,0.44991,41222.0,41215.0,0.29573172]
[1646402969685,0.44991,41222.0,41216.0,0.060673]
[1646402969883,0.242712,41223.0,41216.0,1.460673]
[1646402970088,0.242712,41223.0,41222.0,0.25168034]
[1646402970483,0.392622,41223.0,41222.0,0.25168034]
[1646402970884,0.242712,41223.0,41216.0,1.07438326]
[1646402971085,0.242712,41223.0,41221.0,0.30220716]
[1646402971286,0.242712,41223.0,41222.0,0.27147418]
[1646402971886,0.242712,41223.0,41222.0,0.77147418]
[1646402972833,0.242712,41223.0,41222.0,0.79570418]
[1646402973232,0.242712,41223.0,41222.0,0.86703581]
[1646402973433,0.242712,41223.0,41222.0,1.03834381]
[1646402973633,0.21988222,41223.0,41222.0,1.18684381]
[1646402973832,0.02282978,41223.0,41222.0,1.18684381]
[1646402974040,0.02282978,41223.0,41222.0,1.04128218]
[1646402974235,0.88561,41235.0,41222.0,0.81997418]
[1646402974533,0.14991,41229.0,41222.0,0.81997418]
[1646402975337,0.44991,41233.0,41222.0,0.81997418]
[1646402975534,0.14991,41229.0,41222.0,0.77147418]
[1646402975779,0.44991,41233.0,41222.0,0.77147418]
[1646402975977,0.14991,41233.0,41222.0,0.77147418]
[1646402976175,0.19991,41233.0,41222.0,0.560656]
[1646402976375,0.14991,41233.0,41222.0,0.621315]
[1646402976579,0.33754542,41233.0,41223.0,0.060662]
[1646402976875,0.44991,41236.0,41227.0,0.5]
[1646402977076,0.14991,41236.0,41227.0,0.5]
[1646402977477,0.3,41235.0,41227.0,0.5]
[1646402977677,0.19032108,41234.0,41227.0,0.5]
[1646402977876,0.3,41239.0,41228.0,0.26475735]
[1646402978078,0.3,41239.0,41229.0,0.02423]
[1646402978079,0.14991,41239.0,41229.0,0.02423]
[1646402978278,0.05,41247.0,41229.0,0.02423]
[1646402978279,0.3,41245.0,41229.0,0.02423]
[1646402978478,0.05,41247.0,41228.0,0.76475735]
[1646402978479,0.14991,41238.0,41228.0,0.76475735]
[1646402978776,0.14991,41238.0,41230.0,0.060648]
[1646402978979,0.14991,41238.0,41228.0,0.82540035]
[1646402978980,0.19600802,41236.0,41228.0,0.82540035]
[1646402979182,0.3,41237.0,41228.0,0.77446335]
[1646402979380,0.3,41237.0,41228.0,0.509706]
[1646402979634,0.14991,41232.0,41228.0,0.5]
[1646402979836,0.14991,41232.0,41228.0,0.03808881]
[1646402979837,0.88561,41229.0,41228.0,0.03808881]
[1646402980037,1.102551,41226.0,41218.0,0.5]
[1646402980235,0.694246,41219.0,41218.0,0.5]
[1646402980534,0.694246,41219.0,41204.0,0.20028]
[1646402980535,1.952676,41219.0,41204.0,0.20028]
[1646402980736,0.14991,41205.0,41193.0,0.2275]
[1646402980936,0.4488,41212.0,41192.0,0.060706]
[1646402980937,0.33627371,41199.0,41192.0,0.060706]
[1646402981135,0.33627371,41199.0,41191.0,0.03621147]
[1646402981334,0.33627371,41199.0,41190.0,0.03558562]
[1646402981533,0.33627371,41199.0,41185.0,0.001]
[1646402981534,0.48618371,41199.0,41189.0,0.060709]
[1646402981934,0.3,41198.0,41189.0,0.060709]
[1646402982533,0.3,41198.0,41191.0,0.26999644]
[1646402982735,0.3,41198.0,41188.0,0.006]
[1646402982936,0.14991,41195.0,41188.0,0.006]
[1646402983134,0.3,41194.0,41188.0,0.006]
[1646402983378,0.14991,41195.0,41188.0,0.006]
[1646402983581,0.49621013,41197.0,41188.0,0.006]
[1646402983779,0.3,41194.0,41188.0,0.006]
[1646402983980,0.3,41194.0,41186.0,0.002]
[1646402983981,0.3,41194.0,41187.0,0.060714]
[1646402984283,0.14991,41195.0,41187.0,0.060714]
[1646402984479,0.14991,41198.0,41187.0,0.060714]
[1646402984679,0.14991,41198.0,41189.0,0.06071]
[1646402984981,0.14991,41198.0,41192.0,0.21926586]
[1646402985381,0.14991,41198.0,41191.0,0.060707]
[1646402987035,0.14991,41198.0,41192.0,0.060703]
[1646402987234,0.14991,41197.0,41192.0,0.060703]
[1646402987431,0.14991,41197.0,41192.0,0.116405]
[1646402988132,0.14991,41197.0,41194.0,0.2371192]
[1646402988335,0.14991,41197.0,41194.0,0.2978232]
[1646402988535,0.33627371,41199.0,41194.0,0.2978232]
[1646402988739,0.33627371,41199.0,41195.0,0.060695]
[1646402989337,0.00315729,41196.0,41195.0,0.060695]
[1646402989639,0.33627371,41199.0,41195.0,0.32896516]
[1646402991883,0.33627371,41199.0,41195.0,0.37746516]
[1646402994192,0.14991,41197.0,41192.0,0.060702]
[1646402994389,0.14991,41197.0,41186.0,0.44746023]
[1646402994390,0.366851,41196.0,41186.0,0.002]
[1646402994631,0.14991,41197.0,41186.0,0.002]
[1646402994632,0.3,41195.0,41186.0,0.002]
[1646402995127,0.25757582,41194.0,41186.0,0.002]
[1646402995329,0.14991,41191.0,41186.0,0.002]
[1646402996329,0.36961023,41191.0,41186.0,0.002]
[1646402996526,0.14991,41190.0,41186.0,0.002]
[1646402997332,0.40922137,41195.0,41186.0,0.002]
[1646402997629,0.14991,41190.0,41186.0,0.002]
[1646402997928,0.14991,41191.0,41186.0,0.002]
[1646402998395,0.14991,41191.0,41186.0,0.011715]
[1646402998696,0.17323206,41190.0,41186.0,0.011715]
[1646402998999,0.14991,41187.0,41186.0,0.011715]
[1646402999197,0.22323206,41190.0,41186.0,0.002]
[1646402999798,0.3,41189.0,41186.0,0.002]
[1646403000006,0.14991,41187.0,41186.0,0.002]
[1646403000396,0.44991,41187.0,41186.0,0.002]
[1646403001097,1.20984,41187.0,41186.0,0.002]
[1646403001296,0.17414,41187.0,41186.0,0.002]
[1646403001497,0.47414,41187.0,41186.0,0.002]
[1646403001796,0.38414,41187.0,41174.0,0.001]
[1646403002034,0.3,41186.0,41174.0,0.001]
[1646403002641,0.3,41186.0,41176.0,0.060727]
[1646403002834,0.28423,41187.0,41179.0,0.24544144]
[1646403003034,0.16746731,41186.0,41179.0,0.24544144]
[1646403003235,0.28423,41187.0,41179.0,0.24544144]
[1646403003434,0.14991,41184.0,41179.0,0.24544144]
[1646403003635,0.14991,41184.0,41174.0,0.001]
[1646403003935,0.19991,41184.0,41174.0,0.001]
[1646403004134,0.19991,41184.0,41176.0,0.060727]
[1646403004535,0.14991,41183.0,41179.0,0.2863491]
[1646403005338,0.14991,41183.0,41180.0,0.060721]
[1646403005538,0.05,41184.0,41179.0,0.2863491]
[1646403005841,0.05,41187.0,41181.0,0.07424905]
[1646403006144,0.14991,41193.0,41187.0,0.04097703]
[1646403006339,0.14991,41195.0,41187.0,0.04097703]
[1646403006739,0.9,41193.0,41182.0,0.004]
[1646403006940,0.58914272,41188.0,41182.0,0.004]
[1646403007140,0.540991,41183.0,41182.0,0.004]
[1646403007339,1.621391,41183.0,41182.0,0.004]
[1646403007540,0.61884,41183.0,41182.0,0.004]
[1646403008040,0.29461,41183.0,41182.0,0.0035204]
[1646403008441,0.24461,41183.0,41182.0,0.0035204]
[1646403008641,0.0447,41183.0,41181.0,6.028e-05]
[1646403009651,0.14991,41185.0,41181.0,6.028e-05]
[1646403009849,0.001,41187.0,41181.0,6.028e-05]
[1646403010052,0.19461,41189.0,41183.0,0.25491312]
[1646403010251,0.06072185,41186.0,41181.0,6.028e-05]
[1646403010750,0.14991,41185.0,41181.0,6.028e-05]
[1646403010949,5.085e-05,41179.0,41176.0,0.3275825]
[1646403011150,5.085e-05,41179.0,41174.0,0.001]
[1646403011352,5.085e-05,41179.0,41176.0,0.27735627]
[1646403011550,5.085e-05,41179.0,41174.0,0.001]
[1646403012253,5.085e-05,41179.0,41175.0,0.29516484]
[1646403012451,5.085e-05,41179.0,41176.0,0.3]
[1646403012656,5.085e-05,41179.0,41177.0,0.121435]
[1646403012857,5.085e-05,41179.0,41178.0,0.3]
[1646403013057,5.085e-05,41179.0,41178.0,0.32423]
[1646403013290,5.085e-05,41179.0,41178.0,0.52873895]
[1646403013486,5.085e-05,41179.0,41178.0,0.50450895]
[1646403014690,5.085e-05,41179.0,41178.0,0.68788151]
[1646403014886,0.05,41191.0,41179.0,0.02423]
[1646403015091,0.33627371,41199.0,41186.0,0.02423]
[1646403015286,0.33627371,41199.0,41186.0,0.32423]
[1646403015487,0.33627371,41199.0,41194.0,0.3223683]
[1646403016088,0.33627371,41199.0,41195.0,0.060692]
[1646403016287,0.33627371,41199.0,41195.0,0.160692]
[1646403016486,0.33627371,41199.0,41195.0,0.1]
[1646403017135,0.33627371,41199.0,41195.0,0.12423]
[1646403017332,0.33627371,41199.0,41196.0,0.31789893]
[1646403017532,0.05,41207.0,41198.0,0.02423]
[1646403017733,0.2433,41220.0,41203.0,0.21795125]
[1646403017734,0.1577478,41213.0,41203.0,0.21795125]
[1646403017934,0.2433,41220.0,41204.0,0.3]
[1646403018134,0.2341,41221.0,41204.0,0.3]
[1646403018339,0.2341,41221.0,41204.0,0.4]
[1646403018537,0.0552376,41221.0,41211.0,0.29007362]
[1646403018739,3.25755406,41222.0,41211.0,0.35074062]
[1646403018936,0.20272799,41221.0,41212.0,0.121332]
[1646403019137,0.14991,41228.0,41217.0,0.21963431]
[1646403019438,1.56686669,41233.0,41217.0,0.21963431]
[1646403019439,0.49401477,41235.0,41220.0,0.060665]
[1646403019645,0.34169336,41242.0,41220.0,0.060665]
[1646403019646,0.98006435,41243.0,41221.0,1.7447]
[1646403019843,0.01,41249.0,41233.0,0.121273]
[1646403019844,0.05,41244.0,41233.0,0.121273]
[1646403020044,0.01,41249.0,41233.0,0.121273]
[1646403020045,0.21085566,41249.0,41248.0,0.30419431]
[1646403020244,0.01,41249.0,41248.0,0.30419431]
[1646403020438,0.14991,41260.0,41248.0,0.30419431]
[1646403020639,0.02423,41257.0,41243.0,0.1]
[1646403020889,0.06062729,41258.0,41243.0,0.006]
[1646403020890,0.14991,41249.0,41243.0,0.006]
[1646403021090,0.14991,41246.0,41243.0,0.006]
[1646403021284,0.14991,41246.0,41243.0,0.001]
[1646403021686,0.19989999,41248.0,41243.0,0.001]
[1646403021886,0.14991,41251.0,41243.0,0.001]
[1646403022086,0.14991,41251.0,41239.0,0.7589399]
[1646403022286,0.14991,41251.0,41239.0,0.8589399]
[1646403022885,0.18441953,41245.0,41239.0,0.7589399]
[1646403023285,0.18441953,41245.0,41239.0,0.5]
[1646403023488,0.02423,41244.0,41239.0,0.5]
[1646403023891,0.88561,41240.0,41239.0,0.5]
[1646403024086,0.816761,41240.0,41239.0,0.5]
[1646403024386,0.816761,41240.0,41231.0,0.25348139]
[1646403024387,0.02423,41239.0,41231.0,0.25348139]
[1646403024833,0.02423,41239.0,41236.0,0.26816068]
[1646403025035,0.19991,41240.0,41236.0,0.26816068]
[1646403025236,0.002,41244.0,41236.0,0.26816068]
[1646403026038,0.17414,41242.0,41236.0,0.26716068]
[1646403026232,0.17414,41242.0,41235.0,0.5]
[1646403026632,0.17414,41242.0,41235.0,0.7665516]
[1646403026831,0.17414,41242.0,41235.0,0.5]
[1646403027033,0.36163198,41238.0,41235.0,0.5]
[1646403027235,0.32423,41237.0,41235.0,0.5]
[1646403027534,0.386081,41236.0,41235.0,0.5]
[1646403027733,0.02423,41233.0,41231.0,0.504]
[1646403027932,0.14991,41232.0,41231.0,0.504]
[1646403028132,0.14991,41232.0,41231.0,0.5]
[1646403028133,0.19991,41232.0,41231.0,0.5]
[1646403028384,0.1,41237.0,41231.0,0.5]
[1646403028385,0.14991,41235.0,41231.0,0.5]
[1646403028587,0.14991,41236.0,41231.0,0.5]
[1646403028782,0.14991,41236.0,41224.0,0.20990526]
[1646403028783,0.05,41235.0,41232.0,0.005098]
[1646403028984,0.05,41235.0,41233.0,0.28007946]
[1646403029185,0.14991,41238.0,41234.0,0.005096]
[1646403029384,0.14991,41238.0,41235.0,0.005093]
[1646403029585,0.19991,41238.0,41235.0,0.005093]
[1646403031286,0.14791,41238.0,41235.0,0.005093]
[1646403031486,0.05,41240.0,41235.0,0.005093]
[1646403032632,0.19791,41240.0,41235.0,0.005093]
[1646403032934,0.05,41240.0,41235.0,0.005093]
[1646403034435,0.05,41240.0,41232.0,0.060638]
[1646403034639,0.05,41240.0,41212.0,0.41839568]
[1646403034640,0.391061,41232.0,41212.0,0.41839568]
[1646403034839,0.17214,41226.0,41215.0,0.5]
[1646403035036,0.32423,41225.0,41215.0,0.5]
[1646403035237,0.05,41222.0,41217.0,0.19622835]
[1646403035435,0.05,41222.0,41212.0,0.41839568]
[1646403035636,0.05,41222.0,41220.0,0.26182013]
[1646403035637,0.04952584,41222.0,41220.0,0.26182013]
[1646403035891,0.04952584,41222.0,41219.0,0.27328696]
[1646403036786,0.04452584,41222.0,41219.0,0.27328696]
[1646403036986,0.04452584,41222.0,41220.0,0.20989119]
[1646403037186,0.02428898,41222.0,41220.0,0.20989119]
[1646403037386,0.06067005,41225.0,41220.0,0.20989119]
[1646403037786,0.06067005,41225.0,41220.0,0.39294273]
[1646403037987,0.06067005,41225.0,41220.0,0.20989119]
[1646403038990,0.06067005,41225.0,41220.0,0.41180013]
[1646403039185,0.06067005,41225.0,41220.0,0.20989119]
[1646403039633,0.20858005,41225.0,41219.0,0.27328696]
[1646403040633,0.20858005,41225.0,41215.0,0.03616228]
[1646403040832,0.05215302,41227.0,41215.0,0.03616228]
[1646403041032,0.05215302,41227.0,41214.0,0.121319]
[1646403041033,0.02423,41227.0,41214.0,0.121319]
[1646403041236,0.384899,41227.0,41214.0,0.121319]
[1646403041444,0.06067749,41219.0,41212.0,0.49]
[1646403041644,0.14791,41217.0,41212.0,0.49]
[1646403041838,0.14791,41217.0,41211.0,0.25450511]
[1646403041839,0.14791,41217.0,41211.0,0.75450511]
[1646403042238,0.19791,41217.0,41211.0,0.5]
[1646403042637,0.05,41217.0,41211.0,0.5]
[1646403042838,0.12423,41217.0,41209.0,0.31503234]
[1646403043039,0.1,41217.0,41209.0,0.31503234]
[1646403043281,0.02423,41217.0,41210.0,0.27199734]
[1646403043481,0.17214,41217.0,41210.0,0.27199734]
[1646403043783,0.17214,41217.0,41211.0,0.16089373]
[1646403043784,0.22214,41217.0,41211.0,0.16089373]
[1646403043984,0.05,41217.0,41211.0,0.060676]
[1646403044187,0.05,41218.0,41211.0,0.060676]
[1646403044382,0.05,41219.0,41217.0,0.25158688]
[1646403044584,0.14791,41220.0,41216.0,0.25464225]
[1646403044585,0.24791,41220.0,41216.0,0.25464225]
[1646403044783,0.24791,41220.0,41203.0,0.621343]
[1646403044983,0.14791,41218.0,41212.0,0.15853474]
[1646403045386,0.05,41228.0,41212.0,0.15853474]
[1646403045387,0.7428,41226.0,41212.0,0.15853474]
[1646403045584,0.05,41228.0,41212.0,0.21919674]
[1646403045585,0.14791,41227.0,41212.0,0.21919674]
[1646403045983,0.44791,41227.0,41219.0,0.1999117]
[1646403046184,0.44791,41227.0,41212.0,0.060662]
[1646403046185,0.14791,41227.0,41223.0,0.26327146]
[1646403046385,0.14791,41227.0,41222.0,0.06066]
[1646403046587,0.14791,41227.0,41218.0,0.121319]
[1646403046792,0.3,41226.0,41218.0,0.121319]
[1646403047035,0.35,41226.0,41210.0,0.78545237]
[1646403047235,0.25968635,41224.0,41210.0,0.6]
[1646403047437,0.3,41223.0,41212.0,0.121333]
[1646403047633,0.05,41224.0,41216.0,0.28491076]
[1646403048037,0.05,41226.0,41222.0,0.25820245]
[1646403048237,0.05,41226.0,41216.0,0.28491076]
[1646403048436,0.37423,41226.0,41216.0,0.28491076]
[1646403048736,0.06067229,41224.0,41216.0,0.28491076]
[1646403048938,0.37423,41226.0,41216.0,0.34557776]
[1646403049136,0.37423,41226.0,41217.0,0.27771658]
[1646403049538,0.02423,41225.0,41217.0,0.27771658]
[1646403050138,0.14791,41224.0,41217.0,0.27771658]
[1646403050542,0.3,41223.0,41207.0,0.5]
[1646403050812,0.14791,41216.0,41207.0,0.5]
[1646403051103,0.14791,41216.0,41207.0,0.68889351]
[1646403051104,0.19791,41216.0,41207.0,0.68889351]
[1646403051508,0.19791,41216.0,41210.0,0.4964212]
[1646403051707,0.22214,41216.0,41210.0,0.4964212]
[1646403052005,0.22214,41216.0,41210.0,0.23113749]
[1646403052006,0.19791,41216.0,41210.0,0.23113749]
[1646403053205,0.19791,41216.0,41211.0,0.24528455]
[1646403054007,0.19791,41216.0,41210.0,0.23113749]
[1646403054638,0.19791,41216.0,41207.0,0.24614611]
[1646403054933,0.19791,41216.0,41212.0,0.27301131]
[1646403055135,0.19791,41216.0,41207.0,0.24614611]
[1646403055334,0.19791,41216.0,41207.0,0.060682]
[1646403055734,0.19791,41216.0,41207.0,0.24614611]
[1646403055934,0.19791,41216.0,41207.0,0.35363135]
[1646403056138,0.19791,41216.0,41208.0,0.06068]
[1646403056736,0.19791,41216.0,41212.0,0.23866163]
[1646403056936,0.19791,41216.0,41208.0,0.06068]
[1646403057140,0.06068451,41215.0,41207.0,0.79294935]
[1646403057336,0.06068451,41215.0,41207.0,0.85363135]
[1646403057540,0.14791,41213.0,41207.0,0.79294935]
[1646403057740,0.19791,41213.0,41207.0,0.79294935]
[1646403058139,0.14791,41210.0,41207.0,0.79294935]
[1646403058405,0.44791,41214.0,41207.0,0.79294935]
[1646403058598,0.19791,41214.0,41207.0,0.79294935]
[1646403058999,0.19791,41214.0,41209.0,0.2388874]
[1646403059199,0.05,41214.0,41209.0,0.2388874]
[1646403059398,0.14791,41210.0,41209.0,0.2388874]
[1646403059598,0.14791,41210.0,41207.0,0.35363235]
[1646403059802,0.19791,41210.0,41207.0,0.35363235]
[1646403059998,0.19791,41210.0,41208.0,0.00971]
[1646403060401,0.19791,41210.0,41207.0,0.35363235]
[1646403060604,0.14791,41208.0,41207.0,0.35363235]
[1646403060803,0.05,41210.0,41208.0,0.13322092]
[1646403061002,0.05,41211.0,41208.0,0.13322092]
[1646403061703,0.05,41211.0,41208.0,0.36407055]
[1646403062340,0.7488,41217.0,41208.0,0.36407055]
[1646403062539,0.0606851,41211.0,41208.0,0.36407055]
[1646403062740,0.1106851,41211.0,41208.0,0.36407055]
[1646403063538,0.1106851,41211.0,41208.0,0.13322092]
[1646403064946,0.0606851,41211.0,41208.0,0.13322092]
[1646403065142,0.05,41210.0,41208.0,0.13322092]
[1646403065441,0.0606851,41211.0,41208.0,0.45310636]
[1646403065640,0.0606851,41211.0,41209.0,0.27479371]
[1646403067489,0.0606851,41211.0,41208.0,0.45310636]
[1646403068386,0.0606851,41211.0,41208.0,0.13322092]
[1646403068589,0.2488,41209.0,41208.0,0.13322092]
[1646403068789,1.039861,41209.0,41208.0,0.13322092]
[1646403069189,1.23465948,41209.0,41208.0,0.13322092]
[1646403069391,1.50033633,41209.0,41208.0,0.13322092]
[1646403069643,1.17423,41208.0,41199.0,0.53666233]
[1646403069843,0.591061,41202.0,41199.0,0.53666233]
[1646403070046,0.985761,41202.0,41199.0,0.53666233]
[1646403070343,0.985761,41202.0,41192.0,0.003]
[1646403070344,0.391061,41200.0,41192.0,0.001]
[1646403070541,0.8,41201.0,41192.0,0.001]
[1646403070542,0.2,41193.0,41192.0,0.001]
[1646403070843,0.5,41193.0,41192.0,0.001]
[1646403071043,0.05,41193.0,41192.0,0.001]
[1646403071239,0.28238535,41193.0,41192.0,0.001]
[1646403071440,0.17965038,41194.0,41192.0,0.001]
[1646403071646,0.366831,41193.0,41192.0,0.001]
[1646403071841,0.511531,41193.0,41192.0,0.001]
[1646403072241,0.56636893,41193.0,41192.0,0.001]
[1646403072542,0.56636893,41193.0,41178.0,0.001]
[1646403072543,0.02423,41189.0,41178.0,0.001]
[1646403072749,0.02423,41187.0,41178.0,0.001]
[1646403072943,0.2488,41179.0,41178.0,0.001]
[1646403073407,0.2988,41179.0,41178.0,0.001]
[1646403073603,0.35953859,41179.0,41178.0,0.001]
[1646403074006,0.35953859,41179.0,41176.0,0.001]
[1646403074007,0.05,41178.0,41176.0,0.001]
[1646403074806,0.05,41180.0,41176.0,0.18071484]
[1646403075004,0.05,41180.0,41179.0,0.26511091]
[1646403077443,0.3,41186.0,41179.0,0.26511091]
[1646403077444,0.276,41191.0,41179.0,0.26511091]
[1646403077635,0.7904,41196.0,41181.0,0.060712]
[1646403077636,0.91182982,41196.0,41181.0,0.060712]
[1646403077834,0.3,41195.0,41181.0,0.060712]
[1646403078038,0.37022982,41196.0,41181.0,0.060712]
[1646403078235,0.42143,41198.0,41188.0,0.17322698]
[1646403078435,0.42143,41198.0,41188.0,0.46264118]
[1646403078436,0.2488,41197.0,41188.0,0.46264118]
[1646403078634,0.12141082,41199.0,41188.0,0.46264118]
[1646403079236,0.2488,41195.0,41188.0,0.46264118]
[1646403079537,0.2488,41195.0,41189.0,0.22002026]
[1646403080134,0.12141082,41199.0,41189.0,0.22002026]
[1646403080334,0.05,41195.0,41189.0,0.22002026]
[1646403080547,0.2488,41195.0,41189.0,0.22002026]
[1646403080805,0.2988,41195.0,41189.0,0.22002026]
[1646403082191,0.2988,41195.0,41190.0,0.19114105]
[1646403082593,0.05,41195.0,41190.0,0.19114105]
[1646403082795,0.2988,41195.0,41190.0,0.19114105]
[1646403083196,0.05,41195.0,41190.0,0.19114105]
[1646403083593,0.12140782,41199.0,41190.0,0.19114105]
[1646403083796,0.06069874,41202.0,41190.0,0.40093971]
[1646403083997,0.46281748,41205.0,41190.0,0.21537105]
[1646403083998,0.060697,41204.0,41190.0,0.21537105]
[1646403084198,0.060697,41204.0,41190.0,0.31537105]
[1646403084654,0.060697,41204.0,41195.0,0.29556789]
[1646403085051,0.060697,41204.0,41191.0,0.1]
[1646403085354,0.410697,41204.0,41191.0,0.1]
[1646403085755,0.410697,41204.0,41199.0,0.21548973]
[1646403086051,0.110697,41204.0,41199.0,0.21548973]
[1646403086451,0.17139642,41204.0,41199.0,0.21548973]
[1646403087054,0.17139642,41204.0,41194.0,0.31115249]
[1646403087253,0.47139642,41204.0,41194.0,0.31115249]
[1646403087454,0.46639642,41204.0,41194.0,0.31115249]
[1646403087653,0.73498317,41204.0,41192.0,0.1]
[1646403087854,0.060699,41201.0,41195.0,0.20902583]
[1646403088292,0.060699,41201.0,41199.0,0.21038316]
[1646403089292,0.060699,41201.0,41192.0,0.1]
[1646403089491,0.18211312,41201.0,41191.0,0.18556866]
[1646403089692,0.36070235,41200.0,41191.0,0.18556866]
[1646403089890,0.36070235,41200.0,41188.0,0.13729606]
[1646403090091,0.060702,41197.0,41188.0,0.13729606]
[1646403090391,0.060702,41197.0,41193.0,0.15715025]
[1646403090798,0.110702,41197.0,41193.0,0.15715025]
[1646403090992,0.00708486,41197.0,41190.0,0.23440598]
[1646403091191,0.121404,41198.0,41190.0,0.23440598]
[1646403091391,0.75993,41203.0,41197.0,0.26339991]
[1646403091793,0.01325274,41207.0,41197.0,0.26339991]
[1646403092049,0.91780396,41212.0,41204.0,0.3021203]
[1646403092050,0.2431,41211.0,41204.0,0.3021203]
[1646403092244,0.3,41211.0,41204.0,0.3021203]
[1646403092542,0.2538,41213.0,41205.0,0.2617067]
[1646403092945,0.3,41212.0,41205.0,0.3223927]
[1646403093244,0.2488,41211.0,41205.0,0.060686]
[1646403093644,0.05,41210.0,41205.0,0.060686]
[1646403094647,0.3,41210.0,41204.0,0.002]
[1646403094845,0.05,41209.0,41204.0,0.002]
[1646403095046,0.05,41209.0,41205.0,0.22763237]
[1646403095247,0.2488,41208.0,41205.0,0.22763237]
[1646403095445,0.2488,41208.0,41203.0,0.009712]
[1646403095646,0.2988,41208.0,41203.0,0.009712]
[1646403095890,0.05,41208.0,41203.0,0.121379]
[1646403096096,0.005,41213.0,41203.0,0.121379]
[1646403096288,0.005,41213.0,41204.0,0.0486]
[1646403096687,0.005,41213.0,41211.0,0.060683]
[1646403096887,0.2538,41213.0,41211.0,0.060683]
[1646403097289,0.3038,41213.0,41211.0,0.060683]
[1646403097488,0.055,41213.0,41211.0,0.060683]
[1646403097687,0.005,41213.0,41211.0,0.060683]
[1646403097889,0.005,41213.0,41208.0,0.20320228]
[1646403098090,0.005,41213.0,41210.0,0.001]
[1646403098692,0.004,41213.0,41210.0,0.001]
[1646403099090,0.125379,41213.0,41210.0,0.001]
[1646403099537,0.18606828,41213.0,41209.0,0.009711]
[1646403099835,0.05,41212.0,41203.0,0.30389723]
[1646403100037,0.18606828,41213.0,41203.0,0.30389723]
[1646403100038,0.004,41213.0,41203.0,0.42526123]
[1646403100236,0.004,41213.0,41209.0,0.24831477]
[1646403100436,0.004,41213.0,41206.0,0.001]
[1646403101036,0.08335713,41214.0,41206.0,0.001]
[1646403101241,0.02423,41213.0,41202.0,0.14649794]
[1646403101437,0.02423,41213.0,41204.0,0.22977725]
[1646403101636,0.02423,41213.0,41206.0,0.26007977]
[1646403101837,0.06069066,41212.0,41206.0,0.26007977]
[1646403102038,0.060691,41211.0,41206.0,0.26007977]
[1646403104495,0.060691,41211.0,41207.0,0.060682]
[1646403104894,0.060691,41211.0,41206.0,0.26007977]
[1646403106400,0.060691,41211.0,41206.0,0.32076177]
[1646403107639,0.05,41212.0,41206.0,0.32076177]
[1646403107838,0.110678,41214.0,41206.0,0.32076177]
[1646403108440,0.1713588,41214.0,41206.0,0.32076177]
[1646403109243,0.1713588,41214.0,41206.0,0.060682]
[1646403109442,0.1713588,41214.0,41196.0,0.025]
[1646403109443,0.47249102,41214.0,41198.0,0.19775649]
[1646403109644,0.47249102,41214.0,41197.0,0.43555649]
[1646403109645,0.12140302,41211.0,41197.0,0.43555649]
[1646403109941,0.12140302,41211.0,41196.0,0.19775649]
[1646403109942,0.05,41210.0,41196.0,0.19775649]
[1646403110147,0.05,41210.0,41195.0,0.19775649]
[1646403110343,0.2985251,41210.0,41200.0,0.26444317]
[1646403110543,0.060703,41208.0,41200.0,0.26444317]
[1646403111084,0.05,41211.0,41201.0,0.03433571]
[1646403111085,0.121388,41205.0,41201.0,0.03433571]
[1646403111284,0.05,41204.0,41201.0,0.03433571]
[1646403111689,0.060691,41203.0,41201.0,0.09502571]